lending/lending_fUSD_20250409
["ID","MTS","AMOUNT","RATE_DAILY","PERIOD"]
[357614205,1744235536308,-1346.88,0.00040273,2]
[357614206,1744235536318,-500.0,0.00040273,2]
[357614207,1744235536327,-600.91,0.00040273,2]
[357614208,1744235536336,-500.0,0.00040273,2]
[357614209,1744235536346,-500.0,0.00040273,2]
[357614210,1744235536356,-500.0,0.00040273,2]
[357614211,1744235536366,-500.0,0.00040273,2]
[357614212,1744235536376,-1109.78,0.00040273,2]
[357614213,1744235536386,-1062.56,0.00040273,2]
[357614214,1744235536395,-1328.67,0.00040273,2]
[357614215,1744235536405,-1098.1,0.00040273,2]
[357614216,1744235536415,-500.0,0.00040273,2]
[357614217,1744235536424,-648.50449845,0.00040273,2]
[357614218,1744235536433,-500.0,0.00040273,2]
[357614219,1744235536443,-601.54,0.00040273,2]
[357614220,1744235536453,-500.0,0.00040273,2]
[357614221,1744235536467,-500.0,0.00040273,2]
[357614222,1744235536477,-500.0,0.00040273,2]
[357614223,1744235536487,-2058.98,0.00040273,2]
[357614224,1744235536497,-500.0,0.00040273,2]
[357614225,1744235536507,-704.15,0.00040273,2]
[357614226,1744235536516,-548.89151882,0.00040273,2]
[357614227,1744235536526,-500.0,0.00040273,2]
[357614228,1744235536538,-538.73576448,0.00040273,2]
[357614229,1744235536548,-500.0,0.00040273,2]
[357614230,1744235536558,-500.0,0.00040273,2]
[357614231,1744235536568,-1533.75,0.00040273,2]
[357614232,1744235536578,-890.15,0.00040273,2]
[357614233,1744235536588,-2033.59,0.00040273,2]
[357614234,1744235536598,-1091.45,0.00040273,2]
[357614235,1744235536607,-500.0,0.00040273,2]
[357614236,1744235536616,-998.38,0.00040273,2]
[357614237,1744235536627,-990.73,0.00040273,2]
[357614238,1744235536637,-740.02,0.00040273,2]
[357614239,1744235536647,-500.0,0.00040273,2]
[357614240,1744235536656,-840.51,0.00040273,2]
[357614241,1744235536665,-1255.28,0.00040273,2]
[357614242,1744235536675,-628.73,0.00040273,2]
[357614243,1744235536684,-500.0,0.00040273,2]
[357614244,1744235536694,-1122.08,0.00040273,2]
[357614245,1744235536703,-851.89,0.00040273,2]
[357614246,1744235536713,-500.0,0.00040273,2]
[357614247,1744235536723,-500.0,0.00040273,2]
[357614248,1744235536732,-531.87485461,0.00040273,2]
[357614249,1744235536742,-1594.69,0.00040273,2]
[357614250,1744235536751,-846.31,0.00040273,2]
[357614251,1744235536760,-500.0,0.00040273,2]
[357614252,1744235536770,-500.0,0.00040273,2]
[357614253,1744235536780,-634.01,0.00040273,2]
[357614254,1744235536789,-500.0,0.00040273,2]
[357614255,1744235536799,-500.0,0.00040273,2]
[357614256,1744235536808,-500.0,0.00040273,2]
[357614257,1744235536817,-1789.24,0.00040273,2]
[357614258,1744235536826,-500.0,0.00040273,2]
[357614259,1744235536836,-500.0,0.00040273,2]
[357614260,1744235536846,-557.14568415,0.00040273,2]
[357614261,1744235536855,-2100.49,0.00040273,2]
[357614262,1744235536865,-500.0,0.00040273,2]
[357614263,1744235536875,-500.0,0.00040273,2]
[357614264,1744235536885,-1008.97,0.00040273,2]
[357614265,1744235536894,-904.2,0.00040273,2]
[357614266,1744235536903,-575.38,0.00040273,2]
[357614267,1744235536913,-980.91,0.00040273,2]
[357614268,1744235536922,-744.07,0.00040273,2]
[357614269,1744235536932,-500.0,0.00040273,2]
[357614270,1744235536941,-1364.94,0.00040273,2]
[357614271,1744235536951,-500.0,0.00040273,2]
[357614272,1744235536961,-500.0,0.00040273,2]
[357614273,1744235536971,-500.0,0.00040273,2]
[357614274,1744235536980,-747.87,0.00040273,2]
[357614275,1744235536989,-516.50732958,0.00040273,2]
[357614276,1744235536998,-850.11,0.00040273,2]
[357614277,1744235537007,-1247.64,0.00040273,2]
[357614278,1744235537016,-1102.32,0.00040273,2]
[357614279,1744235537026,-659.47,0.00040273,2]
[357614280,1744235537035,-588.76,0.00040273,2]
[357614281,1744235537046,-500.0,0.00040273,2]
[357614282,1744235537057,-500.0,0.00040273,2]
[357614283,1744235537066,-626.4,0.00040273,2]
[357614284,1744235537076,-500.0,0.00040273,2]
[357614285,1744235537086,-500.0,0.00040273,2]
[357614286,1744235537095,-992.17,0.00040273,2]
[357614287,1744235537105,-500.0,0.00040273,2]
[357614288,1744235537114,-500.0,0.00040273,2]
[357614289,1744235537124,-500.0,0.00040273,2]
[357614290,1744235537134,-500.0,0.00040273,2]
[357614291,1744235537143,-500.0,0.00040273,2]
[357614292,1744235537153,-500.0,0.00040273,2]
[357614293,1744235537163,-863.74,0.00040273,2]
[357614294,1744235537172,-669.2,0.00040273,2]
[357614295,1744235537182,-500.0,0.00040273,2]
[357614296,1744235537191,-500.2,0.00040273,2]
[357614297,1744235537200,-500.0,0.00040273,2]
[357614298,1744235537209,-500.0,0.00040273,2]
[357614299,1744235537219,-500.0,0.00040273,2]
[357614300,1744235537228,-623.22,0.00040273,2]
[357614301,1744235537237,-987.07,0.00040273,2]
[357614302,1744235537246,-500.0,0.00040273,2]
[357614303,1744235537255,-500.0,0.00040273,2]
[357614304,1744235537265,-500.0,0.00040273,2]
[357614305,1744235537274,-663.93,0.00040273,2]
[357614306,1744235537284,-500.0,0.00040273,2]
[357614307,1744235537294,-500.0,0.00040273,2]
[357614308,1744235537303,-950.19,0.00040273,2]
[357614309,1744235537312,-1150.41,0.00040273,2]
[357614310,1744235537322,-700.43,0.00040273,2]
[357614311,1744235537331,-1644.09,0.00040273,2]
[357614312,1744235537340,-500.0,0.00040273,2]
[357614313,1744235537350,-1196.11,0.00040273,2]
[357614314,1744235537359,-533.1,0.00040273,2]
[357614315,1744235537368,-500.0,0.00040273,2]
[357614316,1744235537476,-500.0,0.00040273,2]
[357614317,1744235537486,-500.0,0.00040273,2]
[357614318,1744235537496,-509.54,0.00040273,2]
[357614319,1744235537506,-605.75,0.00040273,2]
[357614320,1744235537516,-872.19,0.00040273,2]
[357614321,1744235537525,-500.0,0.00040273,2]
[357614322,1744235537535,-2888.05,0.00040273,2]
[357614323,1744235537545,-1530.18,0.00040273,2]
[357614324,1744235537554,-538.29,0.00040273,2]
[357614325,1744235537563,-604.32431513,0.00040273,2]
[357614326,1744235537573,-1392.95,0.00040273,2]
[357614327,1744235537582,-529.21,0.00040273,2]
[357614328,1744235537592,-760.73,0.00040273,2]
[357614329,1744235537601,-1014.21,0.00040273,2]
[357614330,1744235537611,-728.15,0.00040273,2]
[357614331,1744235537620,-671.68,0.00040273,2]
[357614332,1744235537630,-582.4,0.00040273,2]
[357614333,1744235537640,-500.0,0.00040273,2]
[357614334,1744235537649,-500.0,0.00040273,2]
[357614335,1744235537659,-600.66,0.00040273,2]
[357614336,1744235537668,-500.0,0.00040273,2]
[357614337,1744235537678,-500.0,0.00040273,2]
[357614338,1744235537687,-905.89,0.00040273,2]
[357614339,1744235537696,-500.0,0.00040273,2]
[357614340,1744235537706,-640.01,0.00040273,120]
[357614341,1744235537715,-535.12691796,0.00040273,2]
[357614342,1744235537724,-500.0,0.00040273,2]
[357614343,1744235537734,-600.12,0.00040273,2]
[357614344,1744235537743,-500.0,0.00040273,2]
[357614345,1744235537753,-500.0,0.00040273,2]
[357614346,1744235537762,-500.0,0.00040273,2]
[357614347,1744235537771,-696.24,0.00040273,2]
[357614348,1744235537781,-574.51,0.00040273,2]
[357614349,1744235537790,-621.38,0.00040273,2]
[357614350,1744235537799,-736.46,0.00040273,2]
[357614351,1744235537809,-564.04,0.00040273,2]
[357614352,1744235537819,-500.0,0.00040273,2]
[357614353,1744235537828,-662.39,0.00040273,2]
[357614354,1744235537838,-1138.96,0.00040273,2]
[357614355,1744235537847,-500.0,0.00040273,2]
[357614356,1744235537857,-506.09,0.00040273,2]
[357614357,1744235537866,-557.52,0.00040273,2]
[357614358,1744235537876,-593.38,0.00040273,2]
[357614359,1744235537885,-500.0,0.00040273,2]
[357614360,1744235537895,-978.21,0.00040273,2]
[357614361,1744235537904,-500.0,0.00040273,2]
[357614362,1744235537914,-500.0,0.00040273,2]
[357614363,1744235537923,-879.62,0.00040273,2]
[357614364,1744235537933,-915.14,0.00040273,2]
[357614365,1744235537943,-500.0,0.00040273,2]
[357614366,1744235537953,-972.17,0.00040273,2]
[357614367,1744235537962,-500.0,0.00040273,2]
[357614368,1744235537972,-500.0,0.00040273,2]
[357614369,1744235537981,-689.1,0.00040273,2]
[357614370,1744235537991,-693.42,0.00040273,2]
[357614371,1744235538000,-500.0,0.00040273,2]
[357614372,1744235538010,-500.0,0.00040273,2]
[357614373,1744235538019,-500.0,0.00040273,2]
[357614374,1744235538029,-1204.18,0.00040273,2]
[357614375,1744235538039,-514.62651692,0.00040273,2]
[357614376,1744235538049,-2109.43,0.00040273,2]
[357614377,1744235538059,-500.0,0.00040273,2]
[357614378,1744235538068,-922.86,0.00040273,2]
[357614379,1744235538078,-500.0,0.00040273,2]
[357614380,1744235538088,-500.0,0.00040273,2]
[357614381,1744235538098,-524.33,0.00040273,2]
[357614382,1744235538107,-582.79,0.00040273,2]
[357614383,1744235538117,-500.0,0.00040273,2]
[357614384,1744235538127,-529.9,0.00040273,2]
[357614385,1744235538137,-500.0,0.00040273,2]
[357614386,1744235538147,-520.25,0.00040273,2]
[357614387,1744235538156,-500.0,0.00040273,2]
[357614388,1744235538167,-500.0,0.00040273,2]
[357614389,1744235538176,-500.0,0.00040273,2]
[357614390,1744235538186,-500.0,0.00040273,2]
[357614391,1744235538195,-563.51,0.00040273,2]
[357614392,1744235538205,-515.76,0.00040273,2]
[357614393,1744235538215,-1455.64,0.00040273,2]
[357614394,1744235538225,-944.08,0.00040273,2]
[357614395,1744235538235,-500.0,0.00040273,2]
[357614396,1744235538245,-500.0,0.00040273,2]
[357614397,1744235538256,-1259.75,0.00040273,2]
[357614398,1744235538266,-949.83,0.00040273,2]
[357614399,1744235538276,-867.9,0.00040273,2]
[357614400,1744235538287,-712.22,0.00040273,2]
[357614401,1744235538296,-676.54,0.00040273,2]
[357614402,1744235538306,-2873.89,0.00040273,2]
[357614403,1744235538316,-500.0,0.00040273,2]
[357614404,1744235538326,-500.0,0.00040273,2]
[357614405,1744235538336,-865.86,0.00040273,2]
[357614406,1744235538345,-734.44,0.00040273,2]
[357614407,1744235538355,-1213.14,0.00040273,2]
[357614408,1744235538365,-500.0,0.00040273,2]
[357614409,1744235538375,-510.47,0.00040273,2]
[357614410,1744235538384,-500.0,0.00040273,2]
[357614411,1744235538394,-500.0,0.00040273,2]
[357614412,1744235538403,-320.31621965,0.00040273,2]
[357614413,1744235538413,-1235.75,0.00040273,2]
[357614414,1744235538423,-2062.74,0.00040273,2]
[357614415,1744235538433,-500.0,0.00040273,2]
[357614416,1744235538442,-500.0,0.00040273,2]
[357614417,1744235538452,-1627.43,0.00040273,2]
[357614418,1744235538466,-779.34,0.00040273,2]
[357614419,1744235538476,-1736.3,0.00040273,2]
[357614420,1744235538486,-500.0,0.00040273,2]
[357614421,1744235538495,-500.0,0.00040273,2]
[357614422,1744235538506,-500.0,0.00040273,2]
[357614423,1744235538516,-579.96,0.00040273,2]
[357614424,1744235538526,-2303.11,0.00040273,2]
[357614425,1744235538537,-21393.93,0.00040273,2]
[357614426,1744235538547,-500.0,0.00040273,2]
[357614427,1744235538557,-1487.15,0.00040273,2]
[357614428,1744235538567,-500.0,0.00040273,2]
[357614429,1744235538577,-1444.32,0.00040273,2]
[357614430,1744235538587,-531.51,0.00040273,2]
[357614431,1744235538596,-798.61,0.00040273,2]
[357614432,1744235538607,-663.86,0.00040273,2]
[357614433,1744235538616,-1448.83,0.00040273,2]
[357614434,1744235538626,-1070.68,0.00040273,2]
[357614435,1744235538636,-675.07,0.00040273,2]
[357614436,1744235538646,-720.05,0.00040273,2]
[357614437,1744235538655,-4523.75,0.00040273,2]
[357614438,1744235538665,-1045.81,0.00040273,2]
[357614439,1744235538675,-2369.93,0.00040273,2]
[357614440,1744235538684,-815.31,0.00040273,2]
[357614441,1744235538694,-680.79,0.00040273,2]
[357614442,1744235538704,-3877.45,0.00040273,2]
[357614443,1744235538714,-1072.51,0.00040273,2]
[357614444,1744235538723,-920.84,0.00040273,2]
[357614445,1744235538733,-500.0,0.00040273,2]
[357614446,1744235538742,-1250.82,0.00040273,2]
[357614447,1744235538751,-512.88722651,0.00040273,2]
[357614448,1744235538761,-1683.83,0.00040273,2]
[357614449,1744235538771,-904.45,0.00040273,2]
[357614450,1744235538780,-500.0,0.00040273,2]
[357614451,1744235538790,-8073.34,0.00040273,2]
[357614452,1744235538800,-951.26,0.00040273,2]
[357614453,1744235538809,-500.0,0.00040273,2]
[357614454,1744235538818,-500.0,0.00040273,2]
[357614455,1744235538828,-567.52,0.00040273,2]
[357614456,1744235538838,-500.0,0.00040273,2]
[357614457,1744235538847,-714.37,0.00040273,2]
[357614458,1744235538857,-507.52,0.00040273,2]
[357614459,1744235538867,-1034.56,0.00040273,2]
[357614460,1744235538876,-7044.24,0.00040273,2]
[357614461,1744235538886,-593.89,0.00040273,2]
[357614462,1744235538895,-614.18,0.00040273,2]
[357614463,1744235538905,-500.0,0.00040273,2]
[357614464,1744235538914,-500.0,0.00040273,2]
[357614465,1744235538924,-1165.25,0.00040273,2]
[357614466,1744235538933,-1119.95,0.00040273,2]
[357614467,1744235538943,-1010.11,0.00040273,2]
[357614468,1744235538952,-3541.99,0.00040273,2]
[357614469,1744235538962,-2285.66,0.00040273,2]
[357614470,1744235538972,-1097.67,0.00040273,2]
[357614471,1744235538981,-500.0,0.00040273,2]
[357614472,1744235538991,-500.0,0.00040273,2]
[357614473,1744235539000,-500.0,0.00040273,2]
[357614474,1744235539009,-737.02,0.00040273,2]
[357614475,1744235539342,-1205.42,0.00040273,2]
[357614476,1744235539352,-622.25,0.00040273,2]
[357614477,1744235539362,-626.72,0.00040273,2]
[357614478,1744235539372,-1595.13,0.00040273,2]
[357614479,1744235539382,-1037.81,0.00040273,2]
[357614480,1744235539392,-993.54,0.00040273,2]
[357614481,1744235539402,-4569.67,0.00040273,2]
[357614482,1744235539412,-597.13,0.00040273,2]
[357614483,1744235539422,-925.07,0.00040273,2]
[357614484,1744235539432,-507.44642631,0.00040273,2]
[357614485,1744235539442,-930.17,0.00040273,2]
[357614486,1744235539452,-500.0,0.00040273,2]
[357614487,1744235539469,-733.46,0.00040273,2]
[357614488,1744235539479,-803.16,0.00040273,2]
[357614489,1744235539489,-500.0,0.00040273,2]
[357614490,1744235539499,-1134.05,0.00040273,2]
[357614491,1744235539510,-500.0,0.00040273,2]
[357614492,1744235539520,-6999.86,0.00040273,2]
[357614493,1744235539530,-500.0,0.00040273,2]
[357614494,1744235539543,-2881.42,0.00040273,2]
[357614495,1744235539553,-521.58369818,0.00040273,2]
[357614496,1744235539563,-42423.7,0.00040273,2]
[357614497,1744235539573,-500.0,0.00040273,2]
[357614498,1744235539583,-1337.8,0.00040273,2]
[357614499,1744235539593,-1079.31,0.00040273,2]
[357614500,1744235539602,-509.05,0.00040273,2]
[357614501,1744235539612,-500.0,0.00040273,2]
[357614502,1744235539622,-500.0,0.00040273,2]
[357614503,1744235539632,-500.0,0.00040273,2]
[357614504,1744235539642,-1032.24,0.00040273,2]
[357614505,1744235539652,-1046.49,0.00040273,2]
[357614506,1744235539661,-1965.19,0.00040273,2]
[357614507,1744235539670,-518.91289482,0.00040273,2]
[357614508,1744235539680,-1002.75,0.00040273,2]
[357614509,1744235539690,-23770.72,0.00040273,2]
[357614510,1744235539699,-500.0,0.00040273,2]
[357614511,1744235539709,-500.0,0.00040273,2]
[357614512,1744235539719,-500.0,0.00040273,2]
[357614513,1744235539728,-1158.53,0.00040273,2]
[357614514,1744235539738,-227.99,0.00040273,2]
[357614515,1744235539748,-500.0,0.00040273,2]
[357614516,1744235539758,-500.0,0.00040273,2]
[357614517,1744235539768,-500.0,0.00040273,2]
[357614518,1744235539777,-2575.45,0.00040273,2]
[357614519,1744235539787,-839.12,0.00040273,2]
[357614520,1744235539796,-500.0,0.00040273,2]
[357614521,1744235539806,-500.0,0.00040273,2]
[357614522,1744235539816,-1417.52,0.00040273,2]
[357614523,1744235539825,-375.65,0.00040273,2]
[357614524,1744235539835,-2351.29,0.00040273,2]
[357614525,1744235539844,-500.0,0.00040273,2]
[357614526,1744235539853,-925.42,0.00040273,2]
[357614527,1744235539863,-500.0,0.00040273,2]
[357614528,1744235539872,-500.0,0.00040273,2]
[357614529,1744235539882,-500.0,0.00040273,2]
[357614530,1744235539891,-4543.65,0.00040273,2]
[357614531,1744235539900,-500.0,0.00040273,2]
[357614532,1744235539910,-589.28,0.00040273,2]
[357614533,1744235539919,-500.0,0.00040273,2]
[357614534,1744235539929,-1261.56,0.00040273,2]
[357614535,1744235539938,-908.44,0.00040273,2]
[357614536,1744235539948,-867.74,0.00040273,2]
[357614537,1744235539957,-907.73,0.00040273,2]
[357614538,1744235539966,-660.09,0.00040273,2]
[357614539,1744235539976,-1190.9,0.00040273,2]
[357614540,1744235539985,-4887.83,0.00040273,2]
[357614541,1744235539995,-285.62474166,0.00040273,2]
[357614542,1744235540005,-1267.15,0.00040273,2]
[357614543,1744235540014,-214.40392316,0.00040273,2]
[357614544,1744235540023,-500.0,0.00040273,2]
[357614545,1744235540033,-575.82,0.00040273,2]
[357614546,1744235540043,-774.45,0.00040273,2]
[357614547,1744235540053,-2640.49,0.00040273,2]
[357614548,1744235540062,-929.61,0.00040273,2]
[357614549,1744235540072,-570.35,0.00040273,2]
[357614550,1744235540082,-1204.87,0.00040273,2]
[357614551,1744235540091,-775.07,0.00040273,2]
[357614552,1744235540101,-561.8,0.00040273,2]
[357614553,1744235540110,-535.49,0.00040273,2]
[357614554,1744235540120,-852.59,0.00040273,2]
[357614555,1744235540129,-706.53,0.00040273,2]
[357614556,1744235540139,-500.0,0.00040273,2]
[357614557,1744235540149,-1156.21,0.00040273,2]
[357614558,1744235540159,-1013.54,0.00040273,2]
[357614559,1744235540168,-1279.0,0.00040273,2]
[357614560,1744235540178,-1035.19,0.00040273,2]
[357614561,1744235540188,-846.03,0.00040273,2]
[357614562,1744235540197,-2136.41,0.00040273,2]
[357614563,1744235540207,-500.0,0.00040273,2]
[357614564,1744235540217,-515.73375093,0.00040273,2]
[357614565,1744235540226,-262.63881161,0.00040273,2]
[357614566,1744235540235,-500.0,0.00040273,2]
[357614567,1744235540244,-4235.64,0.00040273,2]
[357614568,1744235540255,-592.54,0.00040273,2]
[357614569,1744235540264,-1028.37,0.00040273,2]
[357614570,1744235540273,-655.91,0.00040273,2]
[357614571,1744235540283,-774.63,0.00040273,2]
[357614572,1744235540292,-500.0,0.00040273,2]
[357614573,1744235540302,-668.99,0.00040273,2]
[357614574,1744235540311,-635.46,0.00040273,2]
[357614575,1744235540320,-500.0,0.00040273,2]
[357614576,1744235540330,-771.42,0.00040273,2]
[357614577,1744235540340,-500.0,0.00040273,2]
[357614578,1744235540349,-500.0,0.00040273,2]
[357614579,1744235540359,-500.0,0.00040273,2]
[357614580,1744235540368,-631.73,0.00040273,2]
[357614581,1744235540378,-1805.21,0.00040273,2]
[357614582,1744235540390,-500.0,0.00040273,2]
[357614583,1744235540399,-500.0,0.00040273,2]
[357614584,1744235540409,-500.0,0.00040273,2]
[357614585,1744235540418,-2082.58,0.00040273,2]
[357614586,1744235540427,-950.96,0.00040273,2]
[357614587,1744235540437,-548.27,0.00040273,2]
[357614588,1744235540447,-777.86,0.00040273,2]
[357614589,1744235540458,-500.0,0.00040273,2]
[357614590,1744235540471,-720.17,0.00040273,2]
[357614591,1744235540481,-1059.64,0.00040273,2]
[357614592,1744235540490,-587.39,0.00040273,2]
[357614593,1744235540502,-1208.61,0.00040273,2]
[357614594,1744235540511,-174266.75,0.00040273,2]
[357614595,1744235540520,-1106.78,0.00040273,2]
[357614596,1744235540530,-1260.1,0.00040273,2]
[357614597,1744235540543,-500.0,0.00040273,2]
[357614598,1744235540552,-501.45996998,0.00040273,2]
[357614599,1744235540561,-738.67,0.00040273,2]
[357614600,1744235540571,-526.41602956,0.00040273,2]
[357614601,1744235540580,-1252.62,0.00040273,2]
[357614602,1744235540590,-500.0,0.00040273,2]
[357614603,1744235540600,-1523.75,0.00040273,2]
[357614604,1744235540609,-500.0,0.00040273,2]
[357614605,1744235540619,-500.0,0.00040273,2]
[357614606,1744235540629,-818.49,0.00040273,2]
[357614607,1744235540639,-1179.84,0.00040273,2]
[357614608,1744235540649,-1025.1,0.00040273,2]
[357614609,1744235540659,-2893.36,0.00040273,2]
[357614610,1744235540668,-500.0,0.00040273,2]
[357614611,1744235540678,-764.1,0.00040273,2]
[357614612,1744235540688,-21329.92,0.00040273,2]
[357614613,1744235540698,-707.54,0.00040273,2]
[357614614,1744235540708,-500.0,0.00040273,2]
[357614615,1744235540717,-1217.62,0.00040273,2]
[357614616,1744235540727,-500.0,0.00040273,2]
[357614617,1744235540740,-500.0,0.00040273,2]
[357614618,1744235540750,-653.91,0.00040273,2]
[357614619,1744235540759,-2083.86,0.00040273,2]
[357614620,1744235540769,-2729.49,0.00040273,2]
[357614621,1744235540779,-545.55,0.00040273,2]
[357614622,1744235540788,-500.0,0.00040273,2]
[357614623,1744235540798,-500.0,0.00040273,2]
[357614624,1744235540808,-510.38,0.00040273,2]
[357614625,1744235540818,-1954.17,0.00040273,2]
[357614626,1744235540827,-1354.05,0.00040273,2]
[357614627,1744235540837,-814.9,0.00040273,2]
[357614628,1744235540847,-500.0,0.00040273,2]
[357614629,1744235540856,-1048.37,0.00040273,2]
[357614630,1744235540866,-500.0,0.00040273,2]
[357614631,1744235540875,-4649.78,0.00040273,2]
[357614632,1744235540886,-500.0,0.00040273,2]
[357614633,1744235540896,-1964.65,0.00040273,2]
[357614634,1744235540906,-500.0,0.00040273,2]
[357614635,1744235540915,-694.5,0.00040273,2]
[357614636,1744235540925,-500.0,0.00040273,2]
[357614637,1744235540935,-1127.83,0.00040273,2]
[357614638,1744235540945,-507.13,0.00040273,2]
[357614639,1744235540955,-500.0,0.00040273,2]
[357614640,1744235540965,-570.34,0.00040273,2]
[357614641,1744235540975,-1498.03,0.00040273,2]
[357614642,1744235540984,-809.55,0.00040273,2]
[357614643,1744235540994,-2525.83,0.00040273,2]
[357614644,1744235541004,-775.82,0.00040273,2]
[357614645,1744235541014,-500.0,0.00040273,2]
[357614646,1744235541024,-955.21,0.00040273,2]
[357614647,1744235541034,-500.0,0.00040273,2]
[357614648,1744235541044,-1151.05,0.00040273,2]
[357614649,1744235541053,-500.0,0.00040273,2]
[357614650,1744235541063,-500.0,0.00040273,2]
[357614651,1744235541072,-969.06,0.00040273,2]
[357614652,1744235541083,-500.0,0.00040273,2]
[357614653,1744235541093,-500.0,0.00040273,2]
[357614654,1744235541103,-365.08653836,0.00040273,2]
[357614655,1744235541112,-511.52,0.00040273,2]
[357614656,1744235541122,-686.74,0.00040273,2]
[357614657,1744235541132,-507.91,0.00040273,2]
[357614658,1744235541141,-5051.26,0.00040273,2]
[357614659,1744235541151,-500.0,0.00040273,2]
[357614660,1744235541161,-500.0,0.00040273,2]
[357614661,1744235541171,-757.52,0.00040273,2]
[357614662,1744235541180,-450.0,0.00040274,14]
[357614663,1744235541190,-154.0,0.00040274,14]
[357614664,1744235541200,-500.0,0.00040488,120]
[357614665,1744235541209,-2000.0,0.00040488,120]
[357614666,1744235541219,-632.995856,0.00040488,120]
[357614667,1744235541228,-151.041005,0.00040498,120]
[357614668,1744235541237,-942.95,0.000405,2]
[357614669,1744235541247,-1767.17,0.00040534,30]
[357614670,1744235541257,-500.0,0.00040547,2]
[357614671,1744235541266,-500.0,0.00040547,2]
[357614672,1744235541276,-1000.0,0.00040547,2]
[357614673,1744235541286,-500.0,0.00040547,2]
[357614674,1744235541295,-500.0,0.00040547,2]
[357614675,1744235541304,-768.82,0.00040547,2]
[357614676,1744235541314,-1033.22,0.00040547,2]
[357614677,1744235541324,-500.0,0.00040547,2]
[357614678,1744235541333,-562.39141672,0.00040547,2]
[357614679,1744235541344,-690.19,0.00040547,2]
[357614680,1744235541353,-500.0,0.00040547,2]
[357614681,1744235541363,-500.0,0.00040547,2]
[357614682,1744235541373,-653.93,0.00040547,2]
[357614683,1744235541383,-500.0,0.00040547,2]
[357614684,1744235541392,-500.0,0.00040547,2]
[357614685,1744235541401,-500.0,0.00040547,2]
[357614686,1744235541410,-500.0,0.00040547,2]
[357614687,1744235541420,-500.0,0.00040547,2]
[357614688,1744235541429,-440.58458515,0.00040547,2]
[357614689,1744235541438,-562.39,0.00040547,2]
[357614690,1744235541447,-500.0,0.00040547,2]
[357614691,1744235541458,-500.0,0.00040547,2]
[357614692,1744235541470,-500.0,0.00040547,2]
[357614693,1744235541479,-523.63,0.00040547,2]
[357614694,1744235541488,-575.25,0.00040547,2]
[357614695,1744235541497,-643.66,0.00040547,2]
[357614696,1744235541507,-500.0,0.00040547,2]
[357614697,1744235541516,-500.0,0.00040547,2]
[357614698,1744235541525,-517.26,0.00040547,2]
[357614699,1744235541536,-500.0,0.00040547,2]
[357614700,1744235541546,-438.90636027,0.00040547,2]
[357614701,1744235541555,-509.1,0.00040547,2]
[357614702,1744235541566,-544.02,0.00040547,2]
[357614703,1744235541575,-1591.25,0.00040547,2]
[357614704,1744235541585,-500.0,0.00040547,2]